Cogmind - Beta 13 @@@ ROGUE MODE // 2024.04.12 @ 13:54:39 Player: iwantthegold Result: Self-destructed Performance ------------- Evolutions (3) 1500 Regions Visited (5) 1000 Robots Destroyed (46) 230 Value Destroyed (1431) 1431 Prototype IDs (5) 100 Alien Tech Used (0) 0 Bonus (118) 118 TOTAL SCORE: 4379 Bonus ------- High Alert Combat Kills 136 Follower Combat Kills 176 Friendly Fire -194 Cogmind --------- Core Integrity 94/700 Matter 203/300 Energy 100/100 System Corruption 2% Temperature Cool (0) Movement Flying (40) Location -7/Factory Parts ------- > --- POWER (1) -------- (None) > --- PROPULSION (4) --- Xenon Bombardment Thruster > --- UTILITY (4) ------ Small Storage Unit > --- WEAPON (4) ------- (None) > --- INVENTORY (8) ---- Medium Treads Peak State ------------ > --- POWER ------------ Nuclear Core > --- PROPULSION ------- Improved Aluminum Leg VSS Leg Hover Unit Hover Unit > --- UTILITY ---------- Small Storage Unit Advanced Weight Redist. System Visual Processing Unit Improved Shield Generator > --- WEAPON ----------- Lightning Gun Advanced Beam Rifle Advanced Beam Rifle > --- INVENTORY -------- Nuclear Core Nuclear Core Advanced Beam Rifle Plasma Cannon Plasma Cannon Datajack [Rating: 33] Favorites ----------- Power Ion Engine Engine Ion Engine Power Core Light Nuclear Core Propulsion VSS Leg Leg VSS Leg Wheel Wheel Hover Unit Hover Unit Flight Unit Xenon Bombardment Thruster Utility Small Storage Unit Device Advanced Weight Redist. System Storage Small Storage Unit Processor Visual Processing Unit Protection Light Armor Plating Weapon Heavy Assault Rifle Energy Gun Advanced Beam Rifle Energy Cannon Plasma Cannon Ballistic Gun Heavy Assault Rifle Launcher Grenade Launcher Special Melee Weapon Datajack Build | -11 -10 -10 -9 -8 -7 ------- Run | Yrd Mat Min Mat Mat Fac Slots Evolved 6 | . . . 2 2 2 Power . | . . . . . . Propulsion 2 | . . . 1 . 1 Utility 2 | . . . 1 1 . Weapon 2 | . . . . 1 1 Parts Attached 69 | 6 4 . 31 14 14 Power 12 | 1 1 . 4 3 3 Engine 8 | 1 1 . 4 2 . Core 4 | . . . . 1 3 Reactor . | . . . . . . Propulsion 19 | 2 2 . 10 2 3 Treads . | . . . . . . Leg 14 | . 2 . 10 2 . Wheel 2 | 2 . . . . . Hover 2 | . . . . . 2 Flight 1 | . . . . . 1 Utility 11 | 1 . . 6 2 2 Device 4 | . . . 1 2 1 Storage 2 | 1 . . . . 1 Processor 1 | . . . 1 . . Hackware . | . . . . . . Protection 4 | . . . 4 . . Artifact . | . . . . . . Weapon 27 | 2 1 . 11 7 6 Energy Gun 11 | 2 1 . 2 5 1 Energy Cannon 4 | . . . . 1 3 Ballistic Gun 7 | . . . 6 . 1 Ballistic Cannon . | . . . . . . Launcher 4 | . . . 3 1 . Special Weapon . | . . . . . . Impact Weapon . | . . . . . . Slashing Weapon . | . . . . . . Piercing Weapon . | . . . . . . Special Melee Weapon 1 | . . . . . 1 Unidentified Prototypes 3 | . . . 2 1 . Parts Lost 34 | . 3 . 8 10 13 Power 6 | . 1 . 1 2 2 Propulsion 9 | . 1 . 1 3 4 Utility 6 | . . . 2 1 3 Weapon 13 | . 1 . 4 4 4 Highest Loss Streak 10 | . 2 . 4 10 10 To Critical Strikes . | . . . . . . Average Slot Usage (%) 86 | . 83 85 95 82 66 Engine 8 | . 12 14 10 2 1 Core 1 | . . . . 5 4 Leg 24 | . 17 28 33 21 10 Wheel 1 | . 10 . . . . Hover 1 | . . . . . 8 Device 3 | . . . 2 3 11 Storage 10 | . 14 14 11 9 5 Processor 6 | . . . 9 9 5 Protection 4 | . . . 7 6 . Energy Gun 14 | . 28 28 5 20 12 Ballistic Gun 6 | . . . 14 . . Launcher 1 | . . . 1 3 . Naked Turns . | . . . . . . Heaviest Build 26 | 14 14 14 26 24 25 Greatest Support 43 | 26 26 20 37 43 34 Greatest Overweight (x) 2 | . 1 . . 2 2 Average Overweight (x) . | . . . . . . Largest Inventory Capacity 8 | 8 8 8 8 8 8 Average Capacity 7 | 7 8 8 8 8 7 Most Carried 8 | 7 8 8 8 8 8 Average Carried 6 | 3 7 8 7 6 4 Final Capacity 8 | 8 8 8 8 8 8 Final Carried 8 | 6 8 8 8 1 1 Class Distribution -------------------- 67% | Mutant 16% | Scavenger-Mutant 10% | Scavenger-Tank 4% | Tank Dominant Class ---------------- Mutant | -10/Materials Mutant | -10/Mines Mutant | -9/Materials Scavenger-Tank | -8/Materials Mutant | -7/Factory Resources | -11 -10 -10 -9 -8 -7 ----------- Run | Yrd Mat Min Mat Mat Fac Matter Collected 1252 | 236 139 . 559 210 108 Remotely . | . . . . . . Salvage Created 1437 | . 268 . 630 378 161 Parts 85 | . 15 . 34 19 17 Haulers Intercepted . | . . . . . . Recyclers Shooed . | . . . . . . Parts Field Recycled . | . . . . . . Retrieved Matter . | . . . . . . Parts Self-Destructed . | . . . . . . Prevented . | . . . . . . Kills | -11 -10 -10 -9 -8 -7 ------- Run | Yrd Mat Min Mat Mat Fac Combat Hostiles Destroyed 42 | . 8 . 17 10 7 Guns 30 | . 7 . 11 8 4 AOE 10 | . . . 5 2 3 Classes Destroyed 7 | . 2 . 3 1 1 Worker 1 | . . . 1 . . Builder 1 | . . . 1 . . Operator 1 | . . . . . 1 Swarmer 15 | . 3 . 5 3 4 Grunt 20 | . 5 . 7 5 3 Brawler 1 | . . . . 1 . Sentry 7 | . . . 6 1 . Best Kill Streak 6 | . 3 . 6 3 3 Combat Bots Only 5 | . 3 . 5 3 3 Max Kills in Single Turn 3 | . 1 . 2 2 3 Gunslinging 1 | . . . . 1 . Exploded 3 | . . . 2 1 3 Melee . | . . . . . . Uniques/NPCs Destroyed . | . . . . . . Combat | -11 -10 -10 -9 -8 -7 -------- Run | Yrd Mat Min Mat Mat Fac Hostile Shots Fired 315 | . 43 . 124 53 95 Missed 72 | . 9 . 27 7 29 Damage Taken 4188 | . 368 . 1401 813 1606 Core 1157 | . 63 . 257 231 606 Absorbed by Shields 43 | . . . . . 43 Core Remaining (%) 66 | 100 . 74 35 58 . Volleys Fired 134 | . 30 . 61 23 20 Largest 3 | . 2 . 2 3 3 Hottest 177 | . 90 . 95 171 177 Shots Fired 279 | . 60 . 115 56 48 Gun 256 | . 60 . 105 48 43 Cannon 7 | . . . . 2 5 Launcher 16 | . . . 10 6 . Special . | . . . . . . Kinetic 82 | . . . 73 . 9 Thermal 105 | . 30 . 13 32 30 Explosive 16 | . . . 10 6 . Electromagnetic 76 | . 30 . 19 18 9 Robot Hit Streak 16 | . 7 . 16 9 7 Robot Miss Streak 6 | . 4 . 6 4 3 Penetration Max . | . . . . . . Secondary Targets 2 | . . . 1 1 . Max Gunslinging Chain 1 | . . . 1 1 . Shots Hit Robots 164 | . 34 . 72 36 22 Core Hits 82 | . 13 . 35 22 12 Critical Kills . | . . . . . . Critical Parts Destroyed . | . . . . . . Critical Strikes 8 | . 2 . 3 2 1 Burn 8 | . 2 . 3 2 1 Melee Attacks . | . . . . . . Impact . | . . . . . . Slashing . | . . . . . . Piercing . | . . . . . . Sneak Attacks . | . . . . . . Combat Hostiles . | . . . . . . Follow-up Attacks . | . . . . . . Damage Inflicted 3932 | . 447 . 1577 751 1157 Guns 2437 | . 447 . 1014 583 393 Cannons 125 | . . . . 47 78 Explosions 1370 | . . . 563 121 686 Melee . | . . . . . . Ramming . | . . . . . . Kinetic 719 | . . . 646 . 73 Thermal 2021 | . 266 . 388 363 1004 Explosive 442 | . . . 321 121 . Electromagnetic 750 | . 181 . 222 267 80 Impact . | . . . . . . Slashing . | . . . . . . Piercing . | . . . . . . Highest Corruption 3 | . . . 3 . 2 Average Corruption 2 | . . . 2 . 2 Corruption Purged . | . . . . . . Corruption Blocked . | . . . . . . Effects 2 | . . . 2 . . Message Errors 1 | . . . 1 . . Matter Fused 1 | . . . 1 . . Overload Shots . | . . . . . . Overflow Damage 294 | . . . 28 . 266 Projectiles 7 | . . . . . 7 Explosions 287 | . . . 28 . 259 Melee . | . . . . . . Knockbacks . | . . . . . . Impact . | . . . . . . Kinetic . | . . . . . . Secondary . | . . . . . . Self-Inflicted Damage 732 | . . . 239 67 426 Shots 17 | . . . 10 3 4 Rammed . | . . . . . . Targets Rammed . | . . . . . . Kicked . | . . . . . . Crushed . | . . . . . . Highest Temperature 702 | . 524 . 233 702 608 Average Temperature 182 | . 167 . 59 251 231 Received Heat Transfer 1377 | . 174 . 384 396 423 Effects 29 | . 4 . . 19 6 Shutdowns 5 | . 1 . . 2 2 Energy Bleed 5 | . 1 . . 4 . Interference 5 | . . . . 5 . Matter Decay 4 | . 2 . . 1 1 Short Circuit 1 | . . . . . 1 Damage (major) 7 | . . . . 6 1 Damage (core) 2 | . . . . 1 1 Siege Activations . | . . . . . . Robots Corrupted . | . . . . . . Combat Hostiles . | . . . . . . Parts Fried 1 | . . . . 1 . Impact Corruptions . | . . . . . . Robots Melted 2 | . 1 . 1 . . Combat Hostiles 2 | . 1 . 1 . . Parts Melted 9 | . 1 . 5 1 2 Heat Transferred 4047 | . 925 . 1066 888 1168 Parts Sabotaged . | . . . . . . Parts Stolen . | . . . . . . Parts Stripped . | . . . . . . Power Chain Reactions 3 | . . . 3 . . Alert | -11 -10 -10 -9 -8 -7 ------- Run | Yrd Mat Min Mat Mat Fac Peak Influence 582 | . 142 55 582 550 460 Initial 249 | . . 55 21 231 249 Average 293 | . 38 55 378 423 346 Maximum Alert Level 2 | . . . 2 2 2 Low Security (%) 31 | 100 100 100 13 . . Level 1 32 | . . . 34 42 68 Level 2 35 | . . . 51 57 31 Level 3 . | . . . . . . Level 4 . | . . . . . . Level 5 . | . . . . . . High Security . | . . . . . . Max Security . | . . . . . . Squads Dispatched 9 | . 2 . 5 1 1 Investigation 3 | . . . 3 . . Extermination . | . . . . . . Reinforcement 6 | . 2 . 2 1 1 Assault . | . . . . . . Garrison . | . . . . . . Intercept . | . . . . . . Searches Triggered . | . . . . . . Construction Impeded . | . . . . . . Haulers Reinforced . | . . . . . . Active Scanning Responses . | . . . . . . Cargo Convoy Interrupts . | . . . . . . Stealth | -11 -10 -10 -9 -8 -7 --------- Run | Yrd Mat Min Mat Mat Fac Distress Signals 5 | . 1 . 3 1 . Communications Jammed . | . . . . . . Distress Signals . | . . . . . . Times Spotted 87 | . 17 . 36 17 17 Peak Tracking Total 6 | . 5 . 5 6 5 Tactical Retreats 6 | . 1 . 1 2 2 Traps | -11 -10 -10 -9 -8 -7 ------- Run | Yrd Mat Min Mat Mat Fac Traps Triggered 3 | . . . 3 . . Indirectly . | . . . . . . Trap Hack Attempts . | . . . . . . Triggered . | . . . . . . Disarmed . | . . . . . . Reprogrammed . | . . . . . . Reused . | . . . . . . Traps Extracted . | . . . . . . Installed . | . . . . . . Triggered . | . . . . . . Machines | -11 -10 -10 -9 -8 -7 ---------- Run | Yrd Mat Min Mat Mat Fac Machines Disabled 9 | . . . 3 2 4 Max in Single Turn 4 | . . . 1 1 4 Machines Repaired . | . . . . . . Machines Dismantled . | . . . . . . Machines Sabotaged . | . . . . . . Overloaded Fab Kills . | . . . . . . Hacking | -11 -10 -10 -9 -8 -7 --------- Run | Yrd Mat Min Mat Mat Fac Machines Accessed 13 | . 4 . 6 1 2 Terminals 11 | . 4 . 5 1 1 Fabricators . | . . . . . . Repair Stations . | . . . . . . Recycling Units . | . . . . . . Scanalyzers 2 | . . . 1 . 1 Garrison Access . | . . . . . . Total Hacks 46 | . 10 . 28 2 6 Successful 27 | . 7 . 15 1 4 Failed 19 | . 3 . 13 1 2 Catastrophic 4 | . . . 3 1 . Database Lockouts . | . . . . . . Manual 17 | . 5 . 9 1 2 Terminals 38 | . 10 . 23 2 3 Fabricators . | . . . . . . Repair Stations . | . . . . . . Recycling Units . | . . . . . . Scanalyzers 8 | . . . 5 . 3 Garrison Access . | . . . . . . Terminal Hacks 13 | . 4 . 8 . 1 Record 3 | . . . 3 . . Prototype ID Bank 1 | . . . 1 . . Branch Access Points 2 | . . . 1 . 1 Alert Level 1 | . 1 . . . . Unreport Threat 1 | . 1 . . . . Locate Traps 2 | . 1 . 1 . . Maintenance Status 1 | . . . 1 . . Transport Status 1 | . 1 . . . . Hauler Manifests 1 | . . . 1 . . Fabricator Hacks . | . . . . . . Repair Station Hacks . | . . . . . . Recycling Unit Hacks . | . . . . . . Scanalyzer 7 | . . . 5 . 2 Insert Component 3 | . . . 2 . 1 Analyze 4 | . . . 3 . 1 Garrison Access Hacks . | . . . . . . Unauthorized Hacks 7 | . 3 . 2 1 1 Terminals 7 | . 3 . 2 1 1 Botnet 7 | . 3 . 2 1 1 Fabricators . | . . . . . . Repair Stations . | . . . . . . Recycling Units . | . . . . . . Scanalyzers . | . . . . . . Garrison Access . | . . . . . . Data Cores Recovered 1 | . . . . . 1 Used . | . . . . . . Hacking Detections 11 | . 3 . 6 1 1 Full Trace Events 2 | . . . 2 . . Feedback Events . | . . . . . . Feedback Blocked . | . . . . . . Robot Schematics Acquired . | . . . . . . Robots Built . | . . . . . . Authchips . | . . . . . . Time . | . . . . . . Total Robot Build Rating . | . . . . . . Part Schematics Acquired 3 | . . . 2 . 1 Parts Built . | . . . . . . Authchips . | . . . . . . Time . | . . . . . . Total Part Build Rating . | . . . . . . Parts Repaired . | . . . . . . Time . | . . . . . . Parts Recycled . | . . . . . . Recycled Matter . | . . . . . . Retrieved Matter . | . . . . . . Retrieved Components . | . . . . . . Parts Scanalyzed 3 | . . . 2 . 1 Part Schematics Acquired 3 | . . . 2 . 1 Parts Damaged . | . . . . . . Bothacking | -11 -10 -10 -9 -8 -7 ------------ Run | Yrd Mat Min Mat Mat Fac Used RIF Installer . | . . . . . . Robots Hacked . | . . . . . . Non-combat . | . . . . . . Combat . | . . . . . . Robot Hacks Applied . | . . . . . . Relay Couplers Released . | . . . . . . Fabnet Peak Effective % . | . . . . . . Robots Rewired . | . . . . . . Allies Hacked . | . . . . . . Hacks Repelled . | . . . . . . Allies | -11 -10 -10 -9 -8 -7 -------- Run | Yrd Mat Min Mat Mat Fac Total Allies 3 | . . 3 . . . Largest Group 3 | . . 3 3 . . Highest-Rated Group 40 | . . 40 40 . . Highest-Rated Ally 16 | . . 16 16 . . Total Orders . | . . . . . . Ally Attacks 46 | . . . 46 . . Total Damage 429 | . . . 429 . . Kills 9 | . . . 9 . . Allies Corrupted . | . . . . . . Allies Melted . | . . . . . . Intel | -11 -10 -10 -9 -8 -7 ------- Run | Yrd Mat Min Mat Mat Fac Robot Analysis Total . | . . . . . . Derelict Logs Recovered . | . . . . . . Drone Launches . | . . . . . . Drone Recoveries . | . . . . . . Exploration | -11 -10 -10 -9 -8 -7 ------------- Run | Yrd Mat Min Mat Mat Fac Turns Passed 2319 | 56 391 140 1012 336 384 Spaces Moved 1608 | 45 226 115 745 189 288 Core 52 | 1 . . . 8 43 Treads . | . . . . . . Legs 1185 | . 141 115 745 181 3 Wheels 129 | 44 85 . . . . Hover 203 | . . . . . 203 Flight 39 | . . . . . 39 Fastest Speed 40 | 50 90 120 90 100 40 Average Speed 99 | 89 111 120 99 102 81 Slowest Speed 190 | 100 190 120 120 150 150 Overloaded Moves . | . . . . . . Propulsion Burnouts . | . . . . . . Robots Hopped 1 | . . . . . 1 Cave-ins Triggered . | . . . . . . Exploration Rate (%) 29 | 4 33 30 79 21 8 Regions Visited 5 Branch Regions 1 Pre-discovered Areas . | . . . . . . Known Exits Taken . | . . . . . . Unknown Exits Taken 5 | 1 1 1 1 1 . Scrap Searched . | . . . . . . Spaces Dug . | . . . . . . Terrain Destroyed 117 | . . . 61 40 16 Melee . | . . . . . . Projectile . | . . . . . . AOE 117 | . . . 61 40 16 Terrain Rammed . | . . . . . . Walls Destroyed . | . . . . . . Machines Disabled . | . . . . . . Actions | -11 -10 -10 -9 -8 -7 --------- Run | Yrd Mat Min Mat Mat Fac Total 2068 | 57 304 117 902 289 399 Wait 187 | . 40 3 31 53 60 Move 1601 | 44 225 114 744 188 286 Hop 1 | . . . . . 1 Pick Up 44 | 7 5 . 17 5 10 Fast Attach 20 | 5 . . 7 2 6 Attach 25 | 1 3 . 5 9 7 Detach 1 | . . . . . 1 Swap 24 | . 1 . 19 3 1 Drop 31 | . . . 18 6 7 Fire 134 | . 30 . 61 23 20 Melee . | . . . . . . Ram . | . . . . . . Kick . | . . . . . . Crush . | . . . . . . Escape Stasis . | . . . . . . Rewire . | . . . . . . Trap . | . . . . . . Miscellaneous . | . . . . . . Route ------- -11/Scrapyard -10/Materials -10/Mines -9/Materials (discovered 3 exits: *Mat / *Min x2) -8/Materials -7/Factory (discovered 3 exits: Sto / Low x2) History --------- Turn | Location | Event 28 | -11/Scrapyard | Discovered new exit (range 16) 57 | -11/Scrapyard | Entered Materials 303 | -10/Materials | Build established: Mutant 384 | -10/Materials | Discovered new exit (range 15) 448 | -10/Materials | Entered Mines 561 | -10/Mines | Discovered new exit (range 6) 573 | -10/Mines | Assisted by bots powering up and referring to "LRC-V3" 588 | -10/Mines | Entered Materials 588 | -9/Materials | Accompanied by 3 allies 588 | -9/Materials | Evolved 2 slots: Propulsion x1, Utility x1 715 | -9/Materials | Discovered new exit (range 13) 876 | -9/Materials | Identified exit to Mines 1229 | -9/Materials | Core integrity fell below 50% 1553 | -9/Materials | Lost 4 parts (1p1u2w) 1578 | -9/Materials | Discovered new exit (range 18) 1600 | -9/Materials | Entered another Materials area 1600 | -8/Materials | Evolved 2 slots: Utility x1, Weapon x1 1911 | -8/Materials | Lost 10 parts (2p3n1u4w) 1929 | -8/Materials | Discovered new exit (range 4) 1936 | -8/Materials | Entered Factory 1936 | -7/Factory | Evolved 2 slots: Propulsion x1, Weapon x1 1972 | -7/Factory | Identified exit to Storage 1972 | -7/Factory | Identified exit to Lower Caves 2200 | -7/Factory | Core integrity fell below 50% 2254 | -7/Factory | Core integrity fell below 20% 2281 | -7/Factory | Lost 10 parts (1p3n2u4w) 2320 | -7/Factory | Self-destructed Last Messages --------------- 02236_ Acquired Plasma Cannon. 02238_ K-01 Serf collects debris. 02239_ Nuclear Core destroyed. 02241_ K-01 Serf collects debris. 02248_ K-01 Serf destroyed. 02250_ Autogun destroyed. 02251_ Dropped Datajack. 02251_ Dropped Broken Plasma Cannon. 02252_ Dropped Plasma Cannon. 02252_ Discarded Visual Processing Unit. 02253_ Dropped Nuclear Core. 02262_ Acquired Med. Treads. 02272_ Acquired Xenon Bombardment Thruster. 02274_ Acquired Sml. Storage Unit. 02286_ Adv. Weight Redist. System destroyed. 02297_ Neutrino Reactor explodes. 02297_ G-47 Trooper destroyed. 02297_ Acquired 49 matter. 02310_ Lgt. Nuclear Core destroyed. 02317_ U-05 Engineer destroyed. Map ----- +----------------------------------------------------+ | ?????????????????????????????????????????????????? | | ?????????????????????????????????????????????????? | | ?????????????????????????????????????????????????? | | ?????????????????????????????????????????????????? | | ?????????????????????????????????????????????????? | | ?????????????????????????????????????????????????? | | ?????????????????????????????????????????????????? | | ?????????????????????????????????????????????????? | | ?????????????????????????????????????????????????? | | ?????????????????????????????????????????????????? | | ?????????????????????????????????????????????????? | | ?????????????????????????????????????????????????? | | ?????????????????????????????????????????????????? | | ?????????????????????????????????????????????????? | | ?????????????????????????????????????????????????? | | ?????????????????????????????????????????????????? | | ?????????????????????????????????????????????????? | | ?????????????????????????????????????????????????? | | ?????????????????????????????????????????????????? | | ???????????########??????????????????????????????? | | ???????????# #??????????????????????????????? | | ???????????# #??????????????????????????????? | | ???????????# ##########?????????????????????? | | ???????????# " g #?????????????????????? | | ########???# ###### #?????????????????????? | | #???# #????# @ #?????????????????????? | | """ ########"######## #?????????????????????? | | """ # = ## #?????????????????????? | | """ # ## #?????????????????????? | | + ## #?????????????????????? | | """ # ###/#########??????????????? | | """ # ! ts ????????? | | """ # ==#######???????????????? | | + """ #?????????????????????? | | ########## """ o #?????????????????????? | | ?????????# """ #?????????????????????? | | ?????????# """ """ s#?????????????????????? | | ????###### """T""" ?>??????????????????? | | ?####"" ""#+###########+## ???????????????????? | | ?# #????????????? ??????????????????? | | ?# ##????????????? ?????????????????? | | ?# * "#?????????????? #????????????????? | | ?# ]/] "#??????????????? #????????????????? | | ?# #????????????????#????????????????? | | ?# #?????????????????????????????????? | | ?# #############?????????????????????? | | ?# " #? ????????????????? | | ?# = " """"""""" # ????????????????? | | ?# =%!% # # ?????????######## | | ?# ! # """"""""" # #????????# ! | +----------------------------------------------------+ Best States ------------- Heat Dissipation 34 Coolant Potential 50 Energy Generation 14 Energy Capacity 280 Matter Stores 300 Matter Capacity 300 Sight Range 18 Terrain Scan Density 10 Additional Mass Support 9 Armor Coverage 225 Evasion (%) 57 Item Schematics ----------------- Grenade Launcher | -9/Materials | Scanalyzed VSS Leg | -9/Materials | Scanalyzed Adv. Beam Rifle | -7/Factory | Scanalyzed Robot Schematics ------------------ None Fabricated ------------ Nothing Alien Tech Used ----------------- None Achievements -------------- Quantum Hacking True Hacker Challenges ------------ None Game ------ Seed RainbowSpacefoldImmobilizer Manual? 0 Play Time 00:42:40 Cumulative 17.6 hours Start 2024.04.11 @ 07:57:27 End 2024.04.12 @ 13:54:39 Sessions 6 Manual Loads 0 Difficulty Rogue Special Mode None Game No. 21 Rogue 21 Adventurer 0 Explorer 0 Win Type - Total 0 Types 0/0/0/0/0/0/0/0/0 Lore% 5 Gallery% 20 Achievement% 15 Wizard Run 0 Options --------- Layout 1 ASCII 0 Keyboard 0 Movement Mouse Keybinds 0 Fullscreen 1 Font 18/SmallcapsGlow Map View 54x44 Zoom Use 0% Tactical HUD 1 Map Filters NONE Filters NONE Steam 0 RUN: 9a612485-421d-4b17-be62-51955dd05e5f